Cogmind - Beta 13 @@@ ROGUE MODE // 2024.04.03 @ 14:24:11 Player: SunoPerson Result: Destroyed by X-62 Marksman with Pulse Rifle Performance ------------- Evolutions (2) 1000 Regions Visited (4) 800 Robots Destroyed (64) 320 Value Destroyed (2029) 2029 Prototype IDs (2) 40 Alien Tech Used (0) 0 Bonus (89) 89 TOTAL SCORE: 4278 Bonus ------- High Alert Combat Kills 56 Follower Combat Kills 33 Cogmind --------- Core Integrity 0/550 Matter 260/300 Energy 100/100 System Corruption 0% Temperature Cool (9) Movement Core (100) Ox1 Location -8/Materials Parts ------- > --- POWER (1) -------- (None) > --- PROPULSION (4) --- (None) > --- UTILITY (2) ------ (None) > --- WEAPON (4) ------- Gauss Rifle Mini Grenade Launcher > --- INVENTORY (5) ---- Improved Light Armor Plating Improved Light Armor Plating Heavy Assault Rifle Peak State ------------ > --- POWER ------------ Light Nuclear Core > --- PROPULSION ------- Advanced Treads Medium Treads Medium Treads Medium Treads > --- UTILITY ---------- Improved Heat Sink Large Storage Unit > --- WEAPON ----------- Heavy Assault Rifle Shotgun Improved Light Cannon Remote Datajack > --- INVENTORY -------- Improved Ion Engine Improved Ion Engine Improved Treads Improved Treads Seismic Detector Recoil Stabilizer Heavy Armor Plating Hardened Medium Armor Plating Improved Light Armor Plating Improved Light Armor Plating Reactive Plating Reactive Plating Shield Generator Mini Grenade Launcher [Rating: 35] Favorites ----------- Power Ion Engine Engine Ion Engine Power Core Light Nuclear Core Propulsion Aluminum Leg Treads Improved Treads Leg Aluminum Leg Wheel Wheel Flight Unit VTOL Module Utility Seismic Detector Device Seismic Detector Storage Medium Storage Unit Protection Hardened Medium Armor Plating Weapon Heavy Assault Rifle Energy Gun Medium Laser Energy Cannon Beam Cannon Ballistic Gun Heavy Assault Rifle Ballistic Cannon Improved Light Cannon Launcher Mini Grenade Launcher Special Weapon Remote Datajack Build | -11 -10 -10 -9 -8 ------- Run | Yrd Mat Min Mat Mat Slots Evolved 4 | . . . 2 2 Power . | . . . . . Propulsion 2 | . . . 2 . Utility . | . . . . . Weapon 2 | . . . . 2 Parts Attached 59 | 8 3 . 24 24 Power 7 | 1 . . 3 3 Engine 4 | 1 . . 3 . Core 3 | . . . . 3 Reactor . | . . . . . Propulsion 27 | 4 . . 14 9 Treads 15 | . . . 6 9 Leg 6 | 2 . . 4 . Wheel 2 | 2 . . . . Hover . | . . . . . Flight 4 | . . . 4 . Utility 6 | 1 2 . 1 2 Device 2 | . 1 . . 1 Storage 3 | 1 1 . 1 . Processor . | . . . . . Hackware . | . . . . . Protection 1 | . . . . 1 Artifact . | . . . . . Weapon 19 | 2 1 . 6 10 Energy Gun 6 | 1 . . 2 3 Energy Cannon 1 | . . . . 1 Ballistic Gun 9 | 1 1 . 4 3 Ballistic Cannon 1 | . . . . 1 Launcher 1 | . . . . 1 Special Weapon 1 | . . . . 1 Impact Weapon . | . . . . . Slashing Weapon . | . . . . . Piercing Weapon . | . . . . . Special Melee Weapon . | . . . . . Unidentified Prototypes 2 | . . . 2 . Parts Lost 15 | . . . 2 13 Power 3 | . . . 1 2 Propulsion 5 | . . . 1 4 Utility . | . . . . . Weapon 7 | . . . . 7 Highest Loss Streak 5 | . . . 1 5 To Critical Strikes . | . . . . . Average Slot Usage (%) 97 | . 98 100 98 93 Engine 8 | . 14 14 10 . Core 2 | . . . . 6 Treads 19 | . . . 25 34 Leg 14 | . 28 28 15 . Device 9 | . 12 14 11 3 Storage 11 | . 14 14 11 8 Protection 1 | . . . . 4 Energy Gun 12 | . 14 14 11 12 Ballistic Gun 12 | . 14 14 11 10 Ballistic Cannon 2 | . . . . 6 Naked Turns 8 | . . . . 8 Heaviest Build 47 | 14 24 21 34 47 Greatest Support 112 | 26 20 20 92 112 Greatest Overweight (x) 11 | 3 1 1 1 11 Average Overweight (x) . | . . 1 . . Largest Inventory Capacity 15 | 8 10 10 15 15 Average Capacity 12 | 7 9 10 12 14 Most Carried 15 | 8 10 10 15 15 Average Carried 11 | 4 7 9 11 13 Final Capacity 15 | 8 10 10 15 5 Final Carried 15 | 4 10 10 15 3 Class Distribution -------------------- 67% | Mutant 17% | Tank 14% | Gunner Dominant Class ---------------- Mutant | -10/Materials Mutant | -10/Mines Mutant | -9/Materials Tank | -8/Materials Resources | -11 -10 -10 -9 -8 ----------- Run | Yrd Mat Min Mat Mat Matter Collected 1356 | 210 157 22 395 572 Remotely . | . . . . . Salvage Created 2248 | . 220 84 987 957 Parts 149 | . 11 12 69 57 Haulers Intercepted 1 | . . . 1 . Recyclers Shooed 1 | . . . . 1 Parts Field Recycled . | . . . . . Retrieved Matter . | . . . . . Parts Self-Destructed . | . . . . . Prevented . | . . . . . Kills | -11 -10 -10 -9 -8 ------- Run | Yrd Mat Min Mat Mat Combat Hostiles Destroyed 54 | . 5 6 19 24 Guns 47 | . 5 6 19 17 Cannons 6 | . . . . 6 AOE 1 | . . . . 1 Classes Destroyed 10 | . 2 1 5 2 Worker 1 | . . . 1 . Hauler 1 | . . . 1 . Operator 1 | . . . 1 . Watcher 7 | . 1 . 5 1 Swarmer 14 | . . 6 3 5 Grunt 26 | . 5 . 10 11 Brawler 1 | . . . . 1 Duelist 1 | . . . 1 . Sentry 10 | . . . 5 5 Hunter 2 | . . . . 2 Best Kill Streak 6 | . 4 3 6 5 Combat Bots Only 5 | . 4 3 5 4 Max Kills in Single Turn 2 | . 1 1 2 1 Gunslinging 1 | . . . 1 . Exploded 1 | . . . . 1 Melee . | . . . . . Uniques/NPCs Destroyed . | . . . . . Combat | -11 -10 -10 -9 -8 -------- Run | Yrd Mat Min Mat Mat Hostile Shots Fired 347 | . 22 23 97 205 Missed 90 | . 11 7 23 49 Damage Taken 3723 | . 118 122 988 2495 Core 843 | . 22 33 227 561 Absorbed by Shields . | . . . . . Core Remaining (%) 73 | 100 . 78 43 . Volleys Fired 156 | . 19 10 65 62 Largest 4 | . 2 2 2 4 Hottest 196 | . 73 73 79 196 Shots Fired 378 | . 38 20 127 193 Gun 326 | . 38 20 127 141 Cannon 52 | . . . . 52 Launcher . | . . . . . Special . | . . . . . Kinetic 208 | . 19 10 65 114 Thermal 159 | . 19 10 62 68 Explosive . | . . . . . Electromagnetic 11 | . . . . 11 Robot Hit Streak 11 | . 4 2 11 11 Robot Miss Streak 4 | . 4 4 4 4 Penetration Max . | . . . . . Secondary Targets 4 | . 1 . 3 . Max Gunslinging Chain 1 | . 1 . 1 . Shots Hit Robots 214 | . 21 7 75 111 Core Hits 108 | . 10 6 41 51 Critical Kills 1 | . . . . 1 Critical Parts Destroyed . | . . . . . Critical Strikes 13 | . 1 1 6 5 Burn 10 | . 1 1 6 2 Destroy 1 | . . . . 1 Blast 2 | . . . . 2 Melee Attacks . | . . . . . Impact . | . . . . . Slashing . | . . . . . Piercing . | . . . . . Sneak Attacks . | . . . . . Combat Hostiles . | . . . . . Follow-up Attacks . | . . . . . Damage Inflicted 3515 | . 284 104 1186 1941 Guns 2854 | . 284 94 1176 1300 Cannons 519 | . . . . 519 Explosions 108 | . . . . 108 Melee . | . . . . . Ramming 34 | . . 10 10 14 Kinetic 1759 | . 150 45 530 1034 Thermal 1624 | . 134 49 646 795 Explosive . | . . . . . Electromagnetic 98 | . . . . 98 Impact . | . . . . . Slashing . | . . . . . Piercing . | . . . . . Highest Corruption . | . . . . . Average Corruption . | . . . . . Corruption Purged . | . . . . . Corruption Blocked . | . . . . . Overload Shots . | . . . . . Overflow Damage 12 | . . . . 12 Projectiles 12 | . . . . 12 Explosions . | . . . . . Melee . | . . . . . Knockbacks 7 | . . 1 . 6 Impact 1 | . . 1 . . Kinetic 6 | . . . . 6 Secondary . | . . . . . Self-Inflicted Damage 52 | . . . . 52 Shots 1 | . . . . 1 Rammed 3 | . . . . 3 Targets Rammed 7 | . . 3 1 3 Kicked 4 | . . 3 1 . Crushed . | . . . . . Highest Temperature 645 | . 84 48 173 645 Average Temperature 108 | . 31 19 38 171 Received Heat Transfer 999 | . 66 . 303 630 Effects 19 | . . . . 19 Shutdowns 4 | . . . . 4 Interference 10 | . . . . 10 Short Circuit 1 | . . . . 1 Damage (minor) 2 | . . . . 2 Damage (major) 1 | . . . . 1 Damage (core) 1 | . . . . 1 Siege Activations . | . . . . . Robots Corrupted . | . . . . . Combat Hostiles . | . . . . . Parts Fried . | . . . . . Impact Corruptions . | . . . . . Robots Melted . | . . . . . Combat Hostiles . | . . . . . Parts Melted 7 | . 1 . 5 1 Heat Transferred 4577 | . 481 222 2109 1765 Parts Sabotaged . | . . . . . Parts Stolen . | . . . . . Parts Stripped . | . . . . . Power Chain Reactions 1 | . . . . 1 Alert | -11 -10 -10 -9 -8 ------- Run | Yrd Mat Min Mat Mat Peak Influence 532 | . 132 85 314 532 Initial 27 | . . . 27 25 Average 141 | . 34 11 119 304 Maximum Alert Level 2 | . . . 1 2 Low Security (%) 74 | 100 100 100 90 30 Level 1 14 | . . . 9 35 Level 2 11 | . . . . 33 Level 3 . | . . . . . Level 4 . | . . . . . Level 5 . | . . . . . High Security . | . . . . . Max Security . | . . . . . Squads Dispatched 8 | . 2 . 1 5 Investigation 2 | . 1 . 1 . Extermination . | . . . . . Reinforcement 6 | . 1 . . 5 Assault . | . . . . . Garrison . | . . . . . Intercept . | . . . . . Searches Triggered . | . . . . . Construction Impeded . | . . . . . Haulers Reinforced . | . . . . . Active Scanning Responses . | . . . . . Cargo Convoy Interrupts . | . . . . . Stealth | -11 -10 -10 -9 -8 --------- Run | Yrd Mat Min Mat Mat Distress Signals 5 | . 3 . 2 . Communications Jammed . | . . . . . Distress Signals . | . . . . . Times Spotted 98 | . 13 7 29 49 Peak Tracking Total 10 | . 4 3 5 10 Tactical Retreats 8 | . . 1 1 6 Traps | -11 -10 -10 -9 -8 ------- Run | Yrd Mat Min Mat Mat Traps Triggered 2 | . 1 . 1 . Indirectly . | . . . . . Trap Hack Attempts . | . . . . . Triggered . | . . . . . Disarmed . | . . . . . Reprogrammed . | . . . . . Reused . | . . . . . Traps Extracted . | . . . . . Installed . | . . . . . Triggered . | . . . . . Machines | -11 -10 -10 -9 -8 ---------- Run | Yrd Mat Min Mat Mat Machines Disabled 5 | . . . 1 4 Max in Single Turn 1 | . . . 1 1 Machines Repaired . | . . . . . Machines Dismantled . | . . . . . Machines Sabotaged . | . . . . . Overloaded Fab Kills . | . . . . . Hacking | -11 -10 -10 -9 -8 --------- Run | Yrd Mat Min Mat Mat Machines Accessed 8 | . 2 . 5 1 Terminals 7 | . 2 . 4 1 Fabricators . | . . . . . Repair Stations . | . . . . . Recycling Units 1 | . . . 1 . Scanalyzers . | . . . . . Garrison Access . | . . . . . Total Hacks 24 | . 5 . 17 2 Successful 14 | . 2 . 11 1 Failed 10 | . 3 . 6 1 Catastrophic 3 | . 2 . 1 . Database Lockouts . | . . . . . Manual 5 | . 1 . 3 1 Terminals 22 | . 5 . 15 2 Fabricators . | . . . . . Repair Stations . | . . . . . Recycling Units 2 | . . . 2 . Scanalyzers . | . . . . . Garrison Access . | . . . . . Terminal Hacks 12 | . 2 . 9 1 Record 1 | . . . 1 . Robot Analysis 1 | . . . 1 . Alert Level 5 | . 1 . 3 1 Unreport Threat 2 | . . . 2 . Hauler Manifests 1 | . . . 1 . Zone Layout 2 | . 1 . 1 . Fabricator Hacks . | . . . . . Repair Station Hacks . | . . . . . Recycling Unit Hacks 2 | . . . 2 . Report Inventory 1 | . . . 1 . Retrieve Components 1 | . . . 1 . Scanalyzer . | . . . . . Garrison Access Hacks . | . . . . . Unauthorized Hacks . | . . . . . Terminals . | . . . . . Fabricators . | . . . . . Repair Stations . | . . . . . Recycling Units . | . . . . . Scanalyzers . | . . . . . Garrison Access . | . . . . . Data Cores Recovered 1 | . . . 1 . Used . | . . . . . Hacking Detections 7 | . 2 . 4 1 Full Trace Events 2 | . . . 2 . Feedback Events . | . . . . . Feedback Blocked . | . . . . . Robot Schematics Acquired . | . . . . . Robots Built . | . . . . . Authchips . | . . . . . Time . | . . . . . Total Robot Build Rating . | . . . . . Part Schematics Acquired . | . . . . . Parts Built . | . . . . . Authchips . | . . . . . Time . | . . . . . Total Part Build Rating . | . . . . . Parts Repaired . | . . . . . Time . | . . . . . Parts Recycled . | . . . . . Recycled Matter . | . . . . . Retrieved Matter . | . . . . . Retrieved Components 1 | . . . 1 . Parts Scanalyzed . | . . . . . Part Schematics Acquired . | . . . . . Parts Damaged . | . . . . . Bothacking | -11 -10 -10 -9 -8 ------------ Run | Yrd Mat Min Mat Mat Used RIF Installer . | . . . . . Robots Hacked . | . . . . . Non-combat . | . . . . . Combat . | . . . . . Robot Hacks Applied . | . . . . . Relay Couplers Released . | . . . . . Fabnet Peak Effective % . | . . . . . Robots Rewired . | . . . . . Allies Hacked . | . . . . . Hacks Repelled . | . . . . . Allies | -11 -10 -10 -9 -8 -------- Run | Yrd Mat Min Mat Mat Total Allies 1 | . . 1 . . Largest Group 1 | . . 1 1 . Highest-Rated Group 31 | . . 31 31 . Highest-Rated Ally 31 | . . 31 31 . Total Orders . | . . . . . Ally Attacks 13 | . . . 13 . Total Damage 211 | . . . 211 . Kills 1 | . . . 1 . Allies Corrupted . | . . . . . Allies Melted . | . . . . . Intel | -11 -10 -10 -9 -8 ------- Run | Yrd Mat Min Mat Mat Robot Analysis Total 1 | . . . 1 . Derelict Logs Recovered 2 | . . 2 . . Drone Launches . | . . . . . Drone Recoveries . | . . . . . Exploration | -11 -10 -10 -9 -8 ------------- Run | Yrd Mat Min Mat Mat Turns Passed 3562 | 68 424 866 1031 1173 Spaces Moved 1648 | 49 225 342 494 538 Core 38 | 6 . . . 32 Treads 800 | . . . 294 506 Legs 765 | 4 225 342 194 . Wheels 39 | 39 . . . . Hover . | . . . . . Flight 6 | . . . 6 . Fastest Speed 50 | 50 120 190 106 50 Average Speed 155 | 97 138 190 143 156 Slowest Speed 600 | 200 190 190 240 600 Overloaded Moves . | . . . . . Propulsion Burnouts . | . . . . . Robots Hopped . | . . . . . Cave-ins Triggered . | . . . . . Exploration Rate (%) 38 | 3 39 70 42 38 Regions Visited 4 Branch Regions 1 Pre-discovered Areas 1 | . . 1 . . Known Exits Taken . | . . . . . Unknown Exits Taken 4 | 1 1 1 1 . Scrap Searched . | . . . . . Spaces Dug . | . . . . . Terrain Destroyed 2 | . . . . 2 Melee . | . . . . . Projectile . | . . . . . AOE 2 | . . . . 2 Terrain Rammed . | . . . . . Walls Destroyed . | . . . . . Machines Disabled . | . . . . . Actions | -11 -10 -10 -9 -8 --------- Run | Yrd Mat Min Mat Mat Total 2342 | 67 301 536 695 743 Wait 360 | 1 42 180 56 81 Move 1644 | 48 224 341 493 538 Hop . | . . . . . Pick Up 55 | 8 9 1 27 10 Fast Attach 15 | 4 2 . 6 3 Attach 19 | 2 . . 5 12 Detach . | . . . . . Swap 25 | 2 1 . 13 9 Drop 61 | 2 4 1 29 25 Fire 156 | . 19 10 65 62 Melee . | . . . . . Ram . | . . . . . Kick 4 | . . 3 1 . Crush 3 | . . . . 3 Escape Stasis . | . . . . . Rewire . | . . . . . Trap . | . . . . . Miscellaneous . | . . . . . Route ------- -11/Scrapyard -10/Materials -10/Mines -9/Materials (discovered 2 exits: *Mat / [*Min]) -8/Materials History --------- Turn | Location | Event 2 | -11/Scrapyard | Met Revision 17 26 | -11/Scrapyard | Discovered new exit (range 14) 69 | -11/Scrapyard | Entered Materials 310 | -10/Materials | Build established: Mutant 331 | -10/Materials | Discovered new exit (range 14) 493 | -10/Materials | Entered Mines 494 | -10/Mines | Learned location of Storage (-7) 583 | -10/Mines | YI-UF0 nonchalantly dropped a Grenade Launcher on the ground 1222 | -10/Mines | Learned 2 Materials zone layouts 1336 | -10/Mines | Discovered new exit (range 7) 1337 | -10/Mines | Escorted by a lone wolf Derelict 1359 | -10/Mines | Entered Materials 1359 | -9/Materials | Accompanied by 1 ally 1359 | -9/Materials | Evolved 2 slots: Propulsion x2 1853 | -9/Materials | Discovered new exit (range 16) 2004 | -9/Materials | Core integrity fell below 50% 2330 | -9/Materials | Discovered new exit (range 15) 2390 | -9/Materials | Entered another Materials area 2390 | -8/Materials | Evolved 2 slots: Weapon x2 2662 | -8/Materials | Lost 3 parts (3w) 2685 | -8/Materials | Build established: Gunner 3210 | -8/Materials | Lost 3 parts (2n1w) 3512 | -8/Materials | Build established: Tank 3533 | -8/Materials | Core integrity fell below 50% 3549 | -8/Materials | Core integrity fell below 20% 3563 | -8/Materials | Destroyed by X-62 Marksman with Pulse Rifle Last Messages --------------- Dropped Recoil Stabilizer. Dropped Shield Generator. Dropped Lrg. Storage Unit. Penetrated by Slug. Atomic Centrifuge disabled. Acquired 9 matter. Penetrated by Slug. Acquired 10 matter. Acquired 1 matter. Lgt. Nuclear Core destroyed. Slug penetrates S-10 Pest. S-10 Pest destroyed. Slug penetrates Wall. Penetrated by Slug. K-01 Serf collects debris. Slug penetrates S-10 Pest. Penetrated by Slug. R-06 Scavenger destroyed. K-01 Serf collects debris. Penetrated by Slug. Map ----- +----------------------------------------------------+ | ????????????????????????###########??????????????? | | ????????????????????????# "" ]#??????????????? | | ????????????????????????# ""S #??????????##### | | ????????????????????????# "" / #?????????## | | ????????????????????????# #?????????# | | ????????????????????????# ! #??????????# | | ????????????????????????# !!!""" #??????????#="T" | | ????????????????????????# !***""" #??????????# """ | | ????????????????????????# !==* "" #??????????#[! | | ??????????????????##+########/##################+# | | ?????????????? % % ![ | | ?????????????? % %=[% | | ??????????????! = H | | ??????????????? #####+############% ######## | | ???????????????????? ????????????# # # | | ??????????????????# ??????????????# # """ + % | | ??????????????????????????????????# + """ ##### | | ??????????????????????????????????# # """ #???? | | ??????????????????????????????????# # #???? | | ??????????????????????????????????#% # #???? | | ??????????????????????????????????# ###########? | | ??????????????????????????????????#% # #? | | ??????????????????????????????????# #* #? | | ????????????????????#+#???????????# + """"""" #? | | ????????????# ##### ############# %# """"""" ## | | ????????????# %ks @ !!%!x % # """"""" # | | ?????????? u s =!=gx # """"""" # | | ????????????# k us = u # """"""" # | | ????????????##+######+############# # # | | ??????????????????# [ #?????# ########+## | | ??????????????????# = #?????# ### ##%### | | ??????????????????# #?????# % =*# | | ??????????????????# !! ####### %### ## # | | ??????????????????# !/ + %%#?## ### # | | ??????????????????# ! ########+##### #?# # | | ??????????????????# #??# % ## #?# # | | ??????????????????# !! #??# """ ## #?#+### | | ??????????????????## ########??# """ ## #?# | | ???????????????????###?????????# """ ## ### | | ???????????????????????????????# ## ## !!! | | ???????????????????????????????# """ ## ###%!! | | ???????????????????????????????# """ ## #?#!!! | | ???????????????????????????????# """ ## #?#= | | ???????????????????????????????# *! ## #?# | | ???????????????????????????????######+####^######+ | | ???????????????????????????????# #!% | | ???????????????????????????????# #== | | ???????????????????????????????# ==+ %% | | ???????????????????????????????# | ########### | | ???????????????????????????????# %!#??????#""" | +----------------------------------------------------+ Best States ------------- Heat Dissipation 45 Energy Generation 14 Energy Capacity 265 Matter Stores 300 Matter Capacity 300 Sight Range 16 Terrain Scan Density 10 Armor Coverage 225 Evasion (%) 55 Recoil Reduction 4 Item Schematics ----------------- None Robot Schematics ------------------ None Fabricated ------------ Nothing Alien Tech Used ----------------- None Achievements -------------- None Challenges ------------ None Game ------ Seed AdvancedMeleeExoskeleton Manual? 0 Play Time 00:38:27 Cumulative 10.2 hours Start 2024.04.03 @ 13:35:04 End 2024.04.03 @ 14:24:11 Sessions 1 Manual Loads 0 Difficulty Rogue Special Mode None Game No. 17 Rogue 17 Adventurer 0 Explorer 0 Win Type - Total 0 Types 0/0/0/0/0/0/0/0/0 Lore% 18 Gallery% 19 Achievement% 14 Wizard Run 0 Options --------- Layout 1 ASCII 0 Keyboard 0 Movement Numpad Keybinds 0 Fullscreen 1 Font 32/TamsynBold Map View 50x35 Zoom Use 0% Tactical HUD 0 Map Filters NONE Filters NONE Steam 1 RUN: 5b98bd6b-b9ae-460f-937c-ab275434a724